bitfinex/quotes_ETHUSD_20210701
["timestamp","ask_amount","ask_price","bid_price","bid_amount"]
[1625130491043,7.0439,2129.2,2128.7,9.29166149]
[1625130491143,7.0439,2129.2,2128.8,4.93853041]
[1625130491397,7.0439,2129.2,2128.7,4.34830101]
[1625130491597,3.67206,2129.6,2128.7,4.34830101]
[1625130492190,7.04337,2129.4,2128.7,11.39178101]
[1625130492491,7.04337,2129.4,2128.8,5.12860445]
[1625130492591,9.39106,2129.6,2128.8,4.97872761]
[1625130492697,9.95582424,2129.7,2128.9,5.01]
[1625130492795,9.95582424,2129.7,2129.0,10.39621827]
[1625130492892,9.95582424,2129.7,2129.2,5.01]
[1625130493094,0.01042424,2129.7,2129.2,5.01]
[1625130493191,0.01042424,2129.7,2129.2,8.0852]
[1625130493292,0.01042424,2129.7,2129.2,3.0752]
[1625130494287,6.96239424,2129.8,2129.3,8.75]
[1625130494392,6.96239424,2129.8,2129.2,3.0752]
[1625130494938,6.96239424,2129.8,2129.0,14.39874]
[1625130495137,6.96239424,2129.8,2129.0,9.38874]
[1625130495239,6.96239424,2129.8,2129.2,0.01042424]
[1625130497342,6.96239424,2129.8,2129.2,5.02042424]
[1625130498792,6.96239424,2129.8,2129.2,0.01042424]
[1625130499595,15.0,2129.7,2129.2,0.01042424]
[1625130499694,7.04312,2129.5,2129.2,0.01042424]
[1625130500096,22.04312,2129.5,2129.2,0.01042424]
[1625130500194,7.04312,2129.5,2129.2,0.01042424]
[1625130501355,15.0,2129.4,2129.2,0.01042424]
[1625130501455,9.3912,2129.7,2129.2,0.01042424]
[1625130501555,16.33,2129.3,2129.2,0.01042424]
[1625130502156,16.25,2129.3,2129.2,0.01042424]
[1625130502688,31.25,2129.3,2129.2,0.01042424]
[1625130502887,38.29389,2129.3,2129.2,0.01042424]
[1625130503389,38.44389,2129.3,2129.2,0.01042424]
[1625130503489,42.21439,2129.3,2129.2,4.24e-06]
[1625130503787,42.33439,2129.3,2129.2,4.24e-06]
[1625130504883,50.33439,2129.3,2129.2,4.24e-06]
[1625130504976,53.00835453,2129.3,2129.2,4.24e-06]
[1625130505075,56.46835453,2129.3,2129.2,4.24e-06]
[1625130505179,7.04869576,2129.0,2128.7,1.01e-06]
[1625130505280,7.04869576,2129.0,2127.8,0.27160459]
[1625130505281,28.3,2128.8,2127.8,5.666e-05]
[1625130505431,0.0168679,2128.3,2127.7,0.00820809]
[1625130505531,5.01,2128.2,2127.7,0.00820809]
[1625130505625,5.01,2128.1,2127.7,0.00820809]
[1625130505725,20.00189601,2128.1,2127.7,0.00820809]
[1625130505825,0.15,2128.0,2127.7,0.00820809]
[1625130505926,0.12,2127.9,2127.7,0.00820809]
[1625130506025,15.12,2127.9,2127.7,0.00820809]
[1625130506127,25.0,2127.8,2127.7,0.00820809]
[1625130506227,43.4487,2127.8,2127.7,0.00820809]
[1625130506328,43.46719725,2127.8,2127.2,5.814e-05]
[1625130506432,7.05059,2127.5,2127.2,5.814e-05]
[1625130506528,22.05059,2127.5,2127.2,5.814e-05]
[1625130506632,0.15,2127.4,2127.2,5.814e-05]
[1625130506731,3.15,2127.4,2127.2,5.814e-05]
[1625130506829,3.0,2127.4,2127.2,5.814e-05]
[1625130507119,9.40078,2127.6,2127.2,5.814e-05]
[1625130507302,3.5,2127.8,2127.2,5.814e-05]
[1625130507602,7.04926,2127.6,2127.2,5.814e-05]
[1625130507908,3.5,2127.8,2127.2,5.814e-05]
[1625130508003,3.5,2127.8,2127.2,3.23125814]
[1625130508106,2.90820809,2128.2,2127.2,3.23125814]
[1625130508206,5.37364525,2128.2,2127.2,3.23125814]
[1625130508305,0.15820809,2128.2,2127.4,5.01]
[1625130508603,0.15820809,2128.2,2127.2,5.81395472]
[1625130508842,0.15820809,2128.2,2127.2,3.23125814]
[1625130508941,5.51471725,2128.2,2127.2,3.23125814]
[1625130509041,15.0,2128.1,2127.2,3.23125814]
[1625130509146,0.15820809,2128.2,2127.2,3.23125814]
[1625130509247,7.04796,2128.0,2127.2,3.23125814]
[1625130509425,7.04796,2128.0,2127.3,5.13789274]
[1625130509505,0.15820809,2128.2,2127.3,5.13789274]
[1625130509597,0.00820809,2128.2,2127.5,5.01]
[1625130510296,7.05548809,2128.2,2127.5,7.59187645]
[1625130510498,0.00820809,2128.2,2127.6,0.08]
[1625130510797,0.00820809,2128.2,2127.6,4.94806825]
[1625130510895,0.00820809,2128.2,2127.5,8.98657645]
[1625130511396,7.05558809,2128.2,2127.5,8.98657645]
[1625130511596,7.05558809,2128.2,2127.5,3.97657645]
[1625130512297,7.05558809,2128.2,2127.7,5.01]
[1625130512397,7.05558809,2128.2,2127.5,2.58187645]
[1625130512599,7.05558809,2128.2,2127.7,5.01]
[1625130512800,0.00820809,2128.2,2127.7,5.01]
[1625130513098,0.00820809,2128.2,2127.6,4.91338275]
[1625130513198,0.00820809,2128.2,2127.5,2.58187645]
[1625130513402,0.00820809,2128.2,2127.7,5.01]
[1625130513702,0.00820809,2128.2,2127.8,5.01]
[1625130513856,0.00820809,2128.2,2127.7,0.968]
[1625130514159,0.00820809,2128.2,2127.8,5.01]
[1625130515359,0.00820809,2128.2,2127.7,0.968]
[1625130515557,0.00820809,2128.2,2127.8,5.01]
[1625130515658,0.00820809,2128.2,2127.8,10.01610054]
[1625130515757,0.00820809,2128.2,2127.9,0.08]
[1625130515856,0.00820809,2128.2,2128.0,5.01]
[1625130516107,0.00820809,2128.2,2127.8,5.01]
[1625130516508,0.00820809,2128.2,2127.9,0.1]
[1625130516909,0.00820809,2128.2,2127.8,5.01]
[1625130518359,13.0,2127.9,2127.5,7.59187645]
[1625130518452,16.3764,2127.9,2127.5,7.59187645]
[1625130518550,16.3764,2127.9,2127.5,5.01]
[1625130518653,16.3764,2127.9,2127.3,0.40977889]
[1625130518752,16.3764,2127.9,2127.2,0.41066257]
[1625130519254,16.5264,2127.9,2127.2,0.41066257]
[1625130519352,16.5264,2127.9,2127.2,5.814e-05]
[1625130520152,16.5264,2127.9,2127.2,5.01005814]
[1625130520251,23.57449,2127.9,2127.2,5.01005814]
[1625130520729,20.79297069,2127.9,2127.2,5.01005814]
[1625130520927,13.74488069,2127.9,2127.2,5.01005814]
[1625130521129,13.74488069,2127.9,2127.2,7.58693459]
[1625130521235,13.74488069,2127.9,2127.3,0.04]
[1625130522232,20.79297069,2127.9,2127.3,0.04]
[1625130522331,20.79297069,2127.9,2127.2,7.58693459]
[1625130523498,20.64297069,2127.9,2127.2,15.58693459]
[1625130523602,13.59488069,2127.9,2127.2,15.58693459]
[1625130523700,13.59488069,2127.9,2127.2,20.54960458]
[1625130523895,13.59488069,2127.9,2127.3,5.01]
[1625130523993,13.59488069,2127.9,2127.4,5.01]
[1625130525947,10.21848069,2127.9,2127.4,5.01]
[1625130526346,10.21848069,2127.9,2127.5,0.08]
[1625130526948,10.21848069,2127.9,2127.5,3.4171]
[1625130527199,10.21848069,2127.9,2127.5,3.3371]
[1625130529308,10.21848069,2127.9,2127.7,5.01]
[1625130529711,10.21848069,2127.9,2127.8,9.72397179]
[1625130529809,10.21848069,2127.9,2127.8,2.63397179]
[1625130530008,10.21848069,2127.9,2127.8,2.57397179]
[1625130530313,10.21848069,2127.9,2127.7,6.388]
[1625130530510,10.21848069,2127.9,2127.7,5.01]
[1625130530712,10.21848069,2127.9,2127.5,5.01]
[1625130531211,10.21848069,2127.9,2127.6,5.01]
[1625130531960,10.21848069,2127.9,2127.7,0.08]
[1625130532461,10.21848069,2127.9,2127.6,7.58397179]
[1625130532860,10.21848069,2127.9,2127.6,7.57299379]
[1625130533662,10.21848069,2127.9,2127.6,2.57397179]
[1625130534410,17.26645069,2127.9,2127.6,2.57397179]
[1625130534508,10.21848069,2127.9,2127.6,2.57397179]
[1625130535611,17.26628069,2127.9,2127.6,2.57397179]
[1625130535914,17.26628069,2127.9,2127.2,10.57193247]
[1625130536015,17.26628069,2127.9,2127.4,5.01]
[1625130536213,14.48480337,2127.9,2127.4,5.01]
[1625130536350,14.48480337,2127.9,2127.3,5.01]
[1625130536551,14.48480337,2127.9,2127.2,5.01005814]
[1625130536749,0.15,2127.8,2127.2,5.01005814]
[1625130536850,7.04949,2127.5,2127.2,5.814e-05]
[1625130536954,2.87703655,2127.5,2127.2,5.814e-05]
[1625130537052,17.87703655,2127.5,2127.2,5.814e-05]
[1625130537249,0.12,2127.4,2127.2,5.814e-05]
[1625130538054,0.27,2127.4,2127.2,5.814e-05]
[1625130538254,21.25096,2127.3,2127.2,5.814e-05]
[1625130538355,7.05096,2127.3,2127.2,5.814e-05]
[1625130539833,16.40096,2127.3,2127.2,5.814e-05]
[1625130540855,16.40749818,2127.3,2127.2,5.814e-05]
[1625130541052,7.05749818,2127.3,2127.2,5.814e-05]
[1625130541753,14.95749818,2127.3,2127.2,5.814e-05]
[1625130542057,15.01749818,2127.3,2127.2,5.814e-05]
[1625130542356,14.95749818,2127.3,2127.2,5.814e-05]
[1625130542806,7.05749818,2127.3,2127.2,5.814e-05]
[1625130543453,0.00653818,2127.3,2127.2,5.814e-05]
[1625130544653,18.47420818,2127.7,2127.2,5.814e-05]
[1625130544853,7.04991,2127.4,2127.2,5.814e-05]
[1625130544951,22.04991,2127.4,2127.2,5.814e-05]
[1625130545253,0.00653085,2127.3,2127.2,5.814e-05]
[1625130547459,20.41399,2127.8,2127.2,5.814e-05]
[1625130547999,9.54919,2127.8,2127.2,5.814e-05]
[1625130548104,7.04948,2127.6,2127.2,5.814e-05]
[1625130548299,7.43700337,2127.9,2127.2,5.814e-05]
[1625130548599,7.43700337,2127.9,2127.6,0.90141251]
[1625130548906,7.43700337,2127.9,2127.7,4.90391727]
[1625130549104,7.43700337,2127.9,2127.8,16.66]
[1625130549201,7.43700337,2127.9,2127.8,15.70583]
[1625130549302,7.43700337,2127.9,2127.8,19.10583]
[1625130549609,3.26523512,2127.9,2127.8,19.10583]
[1625130549702,0.00820809,2128.2,2127.9,20.0]
[1625130549876,0.00820809,2128.2,2128.1,19.36]
[1625130549957,0.00820809,2128.2,2128.1,5.01]
[1625130551159,0.00820809,2128.2,2128.1,9.96845683]
[1625130551261,0.00724876,2128.7,2128.2,8.8]
[1625130551361,0.00724876,2128.7,2128.1,5.01]
[1625130551462,0.00724876,2128.7,2128.2,5.01]
[1625130551564,0.00724876,2128.7,2128.1,5.01]
[1625130551660,0.00724876,2128.7,2128.0,0.18]
[1625130552823,0.00724876,2128.7,2128.0,5.01]
[1625130552920,0.00724876,2128.7,2128.2,0.2]
[1625130553219,7.05303876,2128.7,2128.0,5.01]
[1625130553819,0.00724876,2128.7,2128.0,5.01]
[1625130554757,0.11024876,2128.8,2128.0,5.01]
[1625130554858,7.04622,2128.6,2128.0,5.01]
[1625130556062,7.04622,2128.6,2127.9,12.0558]
[1625130556163,0.11024876,2128.8,2127.9,12.0558]
[1625130556266,0.11024876,2128.8,2128.0,0.08]
[1625130556365,9.3947,2128.9,2128.0,0.08]
[1625130556607,24.3947,2128.9,2127.9,5.01]
[1625130556902,5.17220495,2128.8,2127.9,5.01]
[1625130557101,7.04685,2128.4,2127.7,4.01920687]
[1625130557203,10.47215,2128.4,2127.7,0.51920687]
[1625130557307,15.15,2128.3,2127.7,0.51920687]
[1625130557504,5.2287474,2128.2,2127.7,0.51920687]
[1625130557603,15.0,2128.1,2127.7,0.00820809]
[1625130557703,15.15,2128.1,2127.7,0.00820809]
[1625130558203,12.20922185,2128.0,2127.7,0.00820809]
[1625130558308,15.0,2127.9,2127.7,0.00820809]
[1625130558404,33.48442957,2127.8,2127.7,0.00820809]
[1625130558503,43.25,2127.8,2127.7,0.00820809]
[1625130558704,43.4,2127.8,2127.7,0.00820809]
[1625130558853,43.48,2127.8,2127.7,0.00820809]
[1625130559455,43.48,2127.8,2127.7,8.09e-06]
[1625130559661,50.52946,2127.8,2127.7,8.09e-06]
[1625130560057,51.46301077,2127.8,2127.7,8.09e-06]
[1625130560180,50.52946,2127.8,2127.7,8.09e-06]
[1625130560656,50.52946,2127.8,2127.7,0.00725685]
[1625130560756,22.27946,2127.8,2127.7,0.00725685]
[1625130562314,7.27946,2127.8,2127.7,0.00725685]
[1625130562411,7.19946,2127.8,2127.7,0.00725685]
[1625130562513,21.34946,2127.8,2127.7,0.00725685]
[1625130562613,36.34946,2127.8,2127.7,0.00725685]
[1625130562812,36.42946,2127.8,2127.7,0.00725685]
[1625130565619,21.42946,2127.8,2127.7,0.00725685]
[1625130565717,22.27946,2127.8,2127.7,0.00725685]
[1625130565818,7.27946,2127.8,2127.7,0.00725685]
[1625130566519,14.42946,2127.8,2127.7,0.00725685]
[1625130566719,14.34946,2127.8,2127.7,0.00725685]
[1625130567879,7.19946,2127.8,2127.7,0.00725685]
[1625130568471,13.59946,2127.8,2127.7,0.00725685]
[1625130568875,33.98632712,2127.8,2127.7,1.685e-05]
[1625130569091,39.6564719,2127.8,2127.7,1.685e-05]
[1625130569182,47.7764719,2127.8,2127.7,1.685e-05]
[1625130569386,57.7764719,2127.8,2127.7,1.685e-05]
[1625130569880,44.38960478,2127.8,2127.7,1.685e-05]
[1625130569979,34.38960478,2127.8,2127.7,1.685e-05]
[1625130570421,32.17946,2127.8,2127.7,1.685e-05]
[1625130571524,17.17946,2127.8,2127.7,1.685e-05]
[1625130571625,10.77946,2127.8,2127.7,3.48801685]
[1625130571723,7.31946,2127.8,2127.7,3.48801685]
[1625130571823,7.19946,2127.8,2127.7,3.48801685]
[1625130572025,7.04946,2127.8,2127.7,3.48801685]
[1625130573199,9.39928,2127.9,2127.7,3.48801685]
[1625130573301,0.00820809,2128.2,2127.7,3.48801685]
[1625130575110,7.04827,2128.0,2127.7,3.48801685]
[1625130575210,22.04827,2128.0,2127.7,3.48801685]
[1625130575609,7.04827,2128.0,2127.7,3.48801685]
[1625130575808,22.04827,2128.0,2127.7,3.48801685]
[1625130576008,0.06,2127.9,2127.7,3.48801685]
[1625130576211,9.40578809,2128.2,2127.7,3.48801685]
[1625130576861,15.0,2128.1,2127.7,3.48801685]
[1625130577559,9.39884,2128.0,2127.7,3.48801685]
[1625130577759,15.0,2127.9,2127.7,3.48801685]
[1625130579217,19.0996,2127.8,2127.7,3.48801685]
[1625130579322,35.2996,2127.8,2127.7,1.685e-05]
[1625130579427,45.5996,2127.8,2127.1,11.29089878]
[1625130579522,45.67412047,2127.8,2127.1,0.51099878]
[1625130579623,38.62452047,2127.8,2127.1,0.51099878]
[1625130579723,0.01452047,2127.8,2127.2,5.01005814]
[1625130579818,24.39947,2127.9,2127.2,5.814e-05]
[1625130579920,9.39947,2127.9,2127.2,5.814e-05]
[1625130581168,7.04942,2127.6,2127.2,5.814e-05]
[1625130583666,25.90682,2127.6,2127.2,5.814e-05]
[1625130583724,0.15,2127.5,2127.2,5.814e-05]
[1625130583821,5.01,2127.4,2127.2,5.814e-05]
[1625130583921,15.01,2127.4,2127.2,5.814e-05]
[1625130584112,40.85,2127.3,2127.2,5.814e-05]
[1625130584308,40.97,2127.3,2127.2,5.814e-05]
[1625130584705,15.27,2127.3,2127.2,5.814e-05]
[1625130585307,26.97,2127.3,2127.2,5.814e-05]
[1625130585889,40.63561244,2127.3,2127.2,5.814e-05]
[1625130586072,44.09561244,2127.3,2127.2,5.814e-05]
[1625130586273,56.49561244,2127.3,2127.2,5.814e-05]
[1625130586573,44.09561244,2127.3,2127.2,5.814e-05]
[1625130587175,55.85200244,2127.3,2127.2,5.814e-05]
[1625130587977,28.25,2127.2,2125.8,1.33301269]
[1625130588124,29.43224138,2127.1,2125.7,0.01286445]
[1625130588224,2.7,2126.8,2125.7,0.01286445]
[1625130588324,7.05509,2126.3,2125.7,0.01286445]
[1625130588425,15.0,2126.2,2125.7,0.01286445]
[1625130588525,28.25,2126.1,2125.2,21.45441966]
[1625130588678,12.21658621,2126.0,2125.1,0.01117972]
[1625130588776,17.45655568,2126.0,2125.1,0.01117972]
[1625130588874,12.21658621,2126.0,2125.1,0.01117972]
[1625130588976,0.01422285,2125.7,2125.1,0.01117972]
[1625130589176,1.5724,2125.8,2125.2,15.6]
[1625130589280,1.5724,2125.8,2125.1,0.01117972]
[1625130589377,7.05568,2125.7,2125.1,0.01117972]
[1625130589925,1.5724,2125.8,2125.1,0.01117972]
[1625130590027,1.5724,2125.8,2124.8,10.49459436]
[1625130590125,28.25,2126.0,2124.8,10.49459436]
[1625130590229,28.25,2126.0,2124.9,0.51005695]
[1625130590374,5.32808427,2125.9,2124.9,0.41005695]
[1625130590476,24.46358427,2125.9,2124.9,0.41005695]
[1625130590573,1.6407,2125.8,2124.8,10.08437972]
[1625130590776,16.6407,2125.8,2124.8,11.0301584]
[1625130590923,16.6407,2125.8,2125.2,0.01422285]
[1625130591927,7.05618,2125.6,2125.2,0.01422285]
[1625130592768,15.0,2125.5,2125.2,0.01422285]
[1625130592867,3.52818,2125.7,2125.2,0.01422285]
[1625130593569,7.05643,2125.4,2125.2,0.01422285]
[1625130595177,0.15,2125.6,2125.2,0.01422285]
[1625130596081,3.67883,2125.6,2125.2,0.01422285]
[1625130596182,7.05643,2125.4,2125.2,0.01422285]
[1625130596278,22.05643,2125.4,2125.2,0.01422285]
[1625130596378,24.1,2125.3,2125.2,0.01422285]
[1625130597618,39.1,2125.3,2125.2,0.01422285]
[1625130597820,24.1,2125.3,2125.2,0.01422285]
[1625130597920,0.15,2125.3,2125.2,0.01422285]
[1625130598120,14.79,2125.3,2125.2,0.01422285]
[1625130598319,19.92497979,2125.3,2125.2,0.01422285]
[1625130598421,20.08248181,2125.3,2125.2,0.01422285]
[1625130598719,35.08248181,2125.3,2125.2,0.01422285]
[1625130599396,29.73339155,2125.3,2125.2,0.01422285]
[1625130599880,28.25,2125.2,2124.2,0.01713753]
[1625130599987,21.86134783,2125.1,2124.2,0.01713753]
[1625130600087,36.75207444,2125.0,2123.3,7.12284544]
[1625130600187,36.75207444,2125.0,2123.3,0.27284544]
[1625130600188,5.10559478,2124.9,2123.3,0.27284544]
[1625130600286,0.04359563,2124.3,2123.3,0.27284544]
[1625130600384,15.0,2124.1,2123.3,0.27284544]
[1625130600488,29.37746601,2124.1,2123.3,0.27284544]
[1625130600589,29.37746601,2124.1,2123.2,0.42952646]
[1625130600590,12.5,2123.9,2123.2,0.42952646]
[1625130600686,15.0,2123.8,2123.2,0.0202583]
[1625130600835,4.3127463,2123.8,2123.2,0.0202583]
[1625130600934,4.1765,2123.8,2123.2,0.0202583]
[1625130601031,24.57739041,2123.8,2123.2,0.0202583]
[1625130601138,7.06283,2123.6,2123.2,0.0202583]
[1625130601239,20.37929242,2123.5,2122.6,2.42361468]
[1625130601336,20.52929242,2123.5,2122.6,2.42361468]
[1625130601436,20.52929242,2123.5,2122.2,0.02349367]
[1625130601437,0.04,2123.4,2122.2,0.02349367]
[1625130601645,0.02186831,2123.2,2122.2,0.02349367]
[1625130601846,0.02186831,2123.2,2122.2,2.53573633]
[1625130601946,5.2753041,2123.2,2122.3,25.5]
[1625130602146,3.0448,2123.3,2122.3,25.5]
[1625130602249,3.0448,2123.3,2122.3,25.45]
[1625130602348,3.0448,2123.3,2122.4,0.51099878]
[1625130602553,7.0648,2123.0,2122.4,0.51099878]
[1625130602848,7.0648,2123.0,2122.7,0.02186831]
[1625130602952,0.15,2123.4,2122.7,0.02186831]
[1625130603106,0.15,2123.4,2123.0,6.96625306]
[1625130603200,0.15,2123.4,2122.7,3.69236831]
[1625130603301,0.1702583,2123.7,2122.7,3.69236831]
[1625130603499,0.1702583,2123.7,2122.8,5.18319337]
[1625130603602,0.1702583,2123.7,2122.7,3.69236831]
[1625130603704,7.2329583,2123.7,2122.8,5.03987418]
[1625130603896,7.2127,2123.7,2122.7,0.02186831]
[1625130604098,11.79303729,2124.2,2122.7,0.02186831]
[1625130604200,0.16867729,2124.2,2122.9,6.42267733]
[1625130604297,0.01867729,2124.2,2123.1,5.01]
[1625130604430,0.01867729,2124.2,2123.2,5.01]
[1625130604502,0.01867729,2124.2,2123.3,5.461952]
[1625130604696,0.01867729,2124.2,2123.5,5.01]
[1625130604898,0.01867729,2124.2,2123.6,5.72458716]
[1625130604998,0.01867729,2124.2,2123.8,5.01]
[1625130605396,0.01867729,2124.2,2123.9,5.12032454]
[1625130605500,0.01713753,2124.7,2124.0,28.25]
[1625130605602,0.81887,2125.0,2124.1,38.95491257]
[1625130605698,0.81887,2125.0,2124.2,5.01]
[1625130605800,0.81887,2125.0,2124.2,5.18771525]
[1625130605901,0.81887,2125.0,2124.3,11.26566949]
[1625130606002,0.81887,2125.0,2124.5,1.4620811]
[1625130606129,0.01564969,2125.2,2124.5,1.4620811]
[1625130606229,0.01564969,2125.2,2124.6,5.83260055]
[1625130606330,0.01564969,2125.2,2124.8,5.01]
[1625130606429,0.01564969,2125.2,2124.8,10.0336]
[1625130606530,0.01564969,2125.2,2124.8,5.0236]
[1625130607028,0.01564969,2125.2,2124.9,5.0199742]
[1625130607128,0.01564969,2125.2,2124.9,5.04582847]
[1625130607227,0.01564969,2125.2,2125.0,5.01]
[1625130607430,9.69e-06,2125.2,2125.1,33.21556576]
[1625130607530,9.69e-06,2125.2,2125.1,38.23210639]
[1625130607628,9.69e-06,2125.2,2125.1,33.37210639]
[1625130607730,9.69e-06,2125.2,2125.1,33.53210639]
[1625130607829,9.69e-06,2125.2,2125.1,0.31]
[1625130608032,9.69e-06,2125.2,2124.9,1.0539]
[1625130608675,7.95000969,2125.3,2124.9,1.0539]
[1625130608774,7.95000969,2125.3,2124.8,5.1736]
[1625130608875,7.95000969,2125.3,2124.8,0.15]
[1625130609277,7.95000969,2125.3,2124.9,5.01]
[1625130609380,7.95000969,2125.3,2125.0,4.99181311]
[1625130609575,7.95000969,2125.3,2124.8,5.16]
[1625130609876,7.95000969,2125.3,2124.9,5.01]
[1625130610177,7.95000969,2125.3,2125.0,4.9614368]
[1625130610277,7.95000969,2125.3,2124.9,5.01]
[1625130610377,7.95000969,2125.3,2125.0,5.07]
[1625130610639,7.95000969,2125.3,2125.0,5.01]
[1625130611026,7.95000969,2125.3,2125.1,4.95634132]
[1625130611126,7.95000969,2125.3,2125.1,4.97202633]
[1625130611229,7.95000969,2125.3,2125.0,5.01]
[1625130611330,7.95000969,2125.3,2125.1,5.0789504]
[1625130611432,7.95000969,2125.3,2125.1,4.5448866]
[1625130611629,7.95000969,2125.3,2125.2,5.01]
[1625130611731,7.95000969,2125.3,2125.0,5.01]
[1625130611930,7.95000969,2125.3,2124.8,0.15]
[1625130612182,7.95000969,2125.3,2124.6,5.52099878]
[1625130612681,7.95000969,2125.3,2124.6,5.01]
[1625130612889,7.95000969,2125.3,2124.7,0.06]
[1625130612990,7.95000969,2125.3,2124.7,5.07]
[1625130613291,7.95000969,2125.3,2124.7,0.06]
[1625130613393,7.95000969,2125.3,2124.9,5.01]
[1625130613495,7.95000969,2125.3,2124.6,4.87611595]
[1625130613592,7.95000969,2125.3,2124.8,5.01]
[1625130613793,7.95000969,2125.3,2124.7,5.01]
[1625130614203,7.95000969,2125.3,2124.7,5.07]
[1625130614305,7.95000969,2125.3,2124.8,5.01]
[1625130614405,7.95000969,2125.3,2124.9,5.01]
[1625130614502,7.95000969,2125.3,2124.8,5.01]
[1625130614605,0.01422285,2125.7,2124.9,28.25]
[1625130614704,0.01422285,2125.7,2124.9,33.27611595]
[1625130614802,0.01422285,2125.7,2125.1,5.01]
[1625130615002,0.00311285,2125.7,2125.1,4.89388]
[1625130615254,7.0503673,2126.2,2125.2,28.0]
[1625130615359,0.04356214,2125.6,2125.2,28.0]
[1625130615454,0.04356214,2125.6,2125.2,28.04]
[1625130615654,0.04356214,2125.6,2125.2,0.04]
[1625130615860,0.03712214,2125.6,2125.1,4.86964]
[1625130615957,0.03712214,2125.6,2125.0,0.51099878]
[1625130616461,7.09367214,2125.6,2125.0,0.51099878]
[1625130616562,0.03712214,2125.6,2124.6,3.1]
[1625130616864,5.29833722,2125.6,2124.6,3.1]
[1625130616963,20.29833722,2125.6,2124.6,3.1]
[1625130617068,5.01,2125.5,2124.5,0.51099878]
[1625130617162,15.0,2125.4,2124.5,0.51099878]
[1625130617264,19.4228,2125.4,2124.5,0.51099878]
[1625130617501,5.01,2125.2,2124.2,5.85847]
[1625130617604,22.05793,2125.2,2124.2,0.01713753]
[1625130617704,30.59747,2125.2,2124.2,0.01713753]
[1625130617802,0.08,2125.1,2124.2,0.01713753]
[1625130617905,0.15,2125.0,2124.2,0.01713753]
[1625130618906,7.0591,2124.9,2124.2,0.01713753]
[1625130619008,0.04,2124.8,2124.2,0.01713753]
[1625130619105,28.29,2124.8,2124.2,0.01713753]
[1625130619510,25.50463109,2124.8,2124.2,0.01713753]
[1625130619647,11.222,2124.9,2124.2,0.01713753]
[1625130619730,0.08,2124.8,2124.2,0.01713753]
[1625130619827,10.28,2124.8,2124.2,0.01713753]
[1625130620233,10.43,2124.8,2124.2,0.01713753]
[1625130620830,25.43,2124.8,2124.7,0.02987254]
[1625130620931,39.43,2124.8,2124.7,0.02987254]
[1625130621131,39.43,2124.8,2124.7,0.04273699]
[1625130621329,47.43,2124.8,2124.7,0.04273699]
[1625130621431,47.43,2124.8,2124.7,1.699e-05]
[1625130621734,33.43,2124.8,2124.7,1.699e-05]
[1625130623494,10.43,2124.8,2124.7,1.699e-05]
[1625130623895,25.43,2124.8,2124.7,1.699e-05]
[1625130623996,30.93075282,2124.8,2124.7,1.699e-05]
[1625130624146,10.43,2124.8,2124.7,1.699e-05]
[1625130624745,30.44,2124.8,2124.7,1.699e-05]
[1625130624943,15.44,2124.8,2124.7,1.699e-05]
[1625130625300,15.36,2124.8,2124.7,1.699e-05]
[1625130625393,15.39712214,2124.8,2124.7,1.699e-05]
[1625130625893,30.39712214,2124.8,2124.7,1.699e-05]
[1625130626196,30.49712214,2124.8,2124.7,1.699e-05]
[1625130628837,15.49712214,2124.8,2124.7,1.699e-05]
[1625130629041,35.80063538,2124.8,2124.7,1.699e-05]
[1625130629362,30.49712214,2124.8,2124.7,1.699e-05]
[1625130629457,15.49712214,2124.8,2124.7,1.699e-05]
[1625130629556,21.14607426,2124.8,2124.7,1.699e-05]
[1625130630155,15.49712214,2124.8,2124.7,1.699e-05]
[1625130630255,15.39712214,2124.8,2124.7,1.699e-05]
[1625130630453,20.67226162,2124.8,2124.7,1.699e-05]
[1625130630886,15.39712214,2124.8,2124.7,1.699e-05]
[1625130630987,0.18712214,2124.8,2124.7,1.699e-05]
[1625130631089,0.18712214,2124.8,2124.7,4.79171699]
[1625130632094,0.03712214,2124.8,2124.7,4.79171699]
[1625130632344,0.03712214,2124.8,2124.7,4.83171699]
[1625130632442,10.9494,2124.9,2124.8,14.45]
[1625130632443,10.49552214,2124.9,2124.8,14.45]
[1625130632542,10.49552214,2124.9,2124.7,4.83171699]
[1625130633046,10.49552214,2124.9,2124.7,4.33171699]
[1625130633262,10.49552214,2124.9,2124.7,4.29171699]
[1625130634563,7.71036235,2124.9,2124.7,4.29171699]
[1625130636049,10.2375,2125.0,2124.7,4.29792734]
[1625130636349,7.05829,2125.1,2124.7,4.29792734]
[1625130636751,7.05829,2125.1,2124.7,0.00621035]
[1625130636854,22.05829,2125.1,2124.7,0.00621035]
[1625130637051,0.25,2125.0,2124.7,0.00621035]
[1625130637151,4.0084,2125.0,2124.7,0.00621035]
[1625130637251,7.05988,2124.9,2124.7,0.00621035]
[1625130637554,3.54510969,2125.2,2124.7,0.00621035]
[1625130637854,18.54510969,2125.2,2124.7,0.00621035]
[1625130637955,5.01,2125.0,2124.7,0.00621035]
[1625130638056,8.4854,2125.0,2124.7,0.00621035]
[1625130638256,5.01,2124.9,2124.7,0.00621035]
[1625130638454,12.12957,2124.9,2124.7,0.00621035]
[1625130638556,7.11957,2124.9,2124.7,0.00621035]
[1625130638654,7.05957,2124.9,2124.7,0.00621035]
[1625130640406,3.69510969,2125.2,2124.7,0.00621035]
[1625130640510,3.54510969,2125.2,2124.7,0.00621035]
[1625130640606,0.01564969,2125.2,2124.7,0.00621035]
[1625130641208,5.01,2125.1,2124.7,0.00621035]
[1625130641312,0.16564969,2125.2,2124.7,0.00621035]
[1625130641611,0.01564969,2125.2,2124.7,0.00621035]
[1625130642772,0.01564969,2125.2,2124.7,0.15621035]
[1625130642868,0.01564969,2125.2,2124.9,7.05601]
[1625130642986,0.01564969,2125.2,2125.1,33.26]
[1625130643261,0.01422285,2125.7,2125.1,33.26]
[1625130643368,0.01422285,2125.7,2125.2,0.15]
[1625130643768,0.01422285,2125.7,2125.3,0.1]
[1625130643965,0.01422285,2125.7,2125.4,7.05424]
[1625130644063,0.01422285,2125.7,2125.4,11.29754]
[1625130645640,0.01422285,2125.7,2125.4,4.2433]
[1625130645740,0.01422285,2125.7,2125.3,9.40565]
[1625130645844,1.4835,2126.1,2125.2,0.51099878]
[1625130645945,6.13032285,2126.1,2125.3,20.9]
[1625130646246,6.13032285,2126.1,2124.9,14.25745]
[1625130646696,5.35229905,2126.0,2124.9,14.25745]